{"text_format":"1","workbook":"xlsx","n_sheets":3,"sheets":["Relació de despeses","Relació d'ingressos ","despeses i ingressos"],"not_rendered":{"charts":0,"images":2,"macros":1,"external_links":0,"defined_names":8,"comments":3,"pivot_tables":0},"unopened":[],"bounds":{"document_bytes":16777216,"sheet_cells":100000,"rows_first":2000,"rows_last":500,"rows_between":2000,"halvings":0,"cell_chars":16384,"cell_head_chars":4096},"cells_cut":0,"cells_raw":0,"read":"whole","date_system":"1900"}

{"sheet":"Relació de despeses","index":0,"n_rows":127,"n_cols":12,"rows_kept":127,"cut":false,"hidden":false,"merged":[[40,0,40,6],[102,0,102,8],[126,0,126,10],[33,11,33,12],[113,0,113,10],[116,0,116,10],[117,0,117,10],[118,0,118,10],[119,0,119,10],[120,0,120,10],[121,0,121,10],[40,11,40,12],[55,11,55,12],[56,11,56,12],[101,0,101,6],[95,0,95,6],[96,0,96,12],[89,0,89,6],[83,0,83,6],[77,0,77,6],[71,0,71,6],[66,0,66,12],[67,11,67,12],[68,11,68,12],[69,11,69,12],[70,11,70,12],[20,11,20,12],[21,0,21,6],[21,11,21,12],[39,0,39,6],[34,0,34,12],[35,11,35,12],[36,11,36,12],[37,11,37,12],[38,11,38,12],[39,11,39,12],[22,0,22,12],[23,11,23,12],[24,11,24,12],[25,11,25,12],[26,11,26,12],[27,0,27,6],[27,11,27,12],[28,0,28,12],[29,11,29,12],[30,11,30,12],[31,11,31,12],[32,11,32,12],[33,0,33,6],[0,0,0,12],[4,0,4,1],[15,0,15,6],[2,2,2,3],[3,2,3,3],[4,2,4,3],[2,0,2,1],[2,4,2,6],[3,4,3,6],[4,4,4,6],[7,2,8,2],[2,9,2,10],[14,11,14,12],[7,3,7,4],[3,0,3,1],[7,1,8,1],[15,11,15,12],[11,11,11,12],[12,11,12,12],[13,11,13,12],[3,9,3,10],[6,0,6,4],[4,9,4,10],[16,0,16,12],[10,0,10,12],[7,0,8,0],[7,11,7,12],[8,11,8,12],[9,0,9,12],[41,0,41,12],[53,11,53,12],[54,0,54,12],[53,0,53,6],[42,0,42,12],[46,11,46,12],[47,11,47,12],[48,0,48,12],[49,11,49,12],[50,11,50,12],[51,11,51,12],[52,11,52,12],[47,0,47,6],[17,11,17,12],[18,11,18,12],[19,11,19,12],[65,0,65,6],[59,0,59,6],[60,0,60,12],[57,11,57,12],[58,11,58,12],[59,11,59,12],[72,0,72,12],[73,11,73,12],[74,11,74,12],[75,11,75,12],[61,11,61,12],[62,11,62,12],[63,11,63,12],[64,11,64,12],[65,11,65,12],[71,11,71,12],[81,11,81,12],[82,11,82,12],[83,11,83,12],[84,0,84,12],[85,11,85,12],[76,11,76,12],[77,11,77,12],[78,0,78,12],[79,11,79,12],[80,11,80,12],[91,11,91,12],[92,11,92,12],[93,11,93,12],[94,11,94,12],[95,11,95,12],[86,11,86,12],[87,11,87,12],[88,11,88,12],[89,11,89,12],[90,0,90,12],[122,0,122,10],[123,0,123,10],[124,0,124,10],[125,0,125,10],[115,0,115,10],[102,11,102,12],[103,0,103,5],[103,11,103,12],[97,11,97,12],[98,11,98,12],[99,11,99,12],[100,11,100,12],[101,11,101,12],[110,0,110,10],[111,0,111,10],[106,0,106,10],[108,0,108,10],[109,0,109,10],[114,0,114,10]]}
["Relació classificada de totes les despeses realitzades per a l'execució de l'activitat  subvencionada"]
[]
["Persona jurídica beneficiària:         ",null,null,null,"Import del cost total del projecte:",null,null,null,null,null,null,"euros"]
["Codi de subvenció:",null,null,null,"Import de la subvenció atorgada:",null,null,null,null,null,null,"euros"]
["Nom del projecte subvencionat:",null,null,null,"Període d'execució del projecte subvencionat:",null,null,null,null,null,null,"a"]
[]
["Despeses del projecte/activitat/servei subvencionat (*)"]
["Núm. d'ordre (0)","Número de document: justificants despesa personal (1), factura o rebut/tiquet(2)","Concepte de la factura / \ndocument probatori equivalent","Emissor/a de la factura",null,"Data d'emissió","Import total de la factura","Percentatge d'iva deduït o el de després d'aplicar la Prorrata","Import després de deduïr l'IVA corresponent","Import imputable (dedicat) al projecte (3)","Import imputable a la subvenció municipal (4)","Observacions"]
[null,null,null,"NIF","Nom","dd/mm/aaaa","euros","%","euros","euros","euros"]
["DESPESES DIRECTES (Aquelles que s'identifiquen directament amb el projecte)"]
["D1.  Nòmines i seguretat social (règim general o socis/es cooperativistes en règim d’autònoms) del personal propi  vinculat al projecte subvencionable (màxim 25% import subvenció)"]
[]
[]
[]
[]
[null,null,null,null,null,null,null,null,"Subtotal D.1",{"$f":"SUM(J12:J15)","v":0},{"$f":"SUM(K12:K15)","v":0}]
["D2. Nòmines i seguretat social d’estudiants en pràctiques (amb un límit del 80% del seu sou brut corresponent al període de l’execució de la subvenció) - excepte si la seguretat social està bonificada"]
[]
[]
[]
[]
[null,null,null,null,null,null,null,null,"Subtotal D.2",{"$f":"SUM(J18:J21)","v":0},{"$f":"SUM(K18:K21)","v":0}]
["D3. Treballs realitzats per professionals i empreses externes directament vinculades al projecte, (inclou despeses de l'estudiant en pràctiques: taxes i altres despeses relacionades amb el conveni de pràctiques)"]
[]
[]
[]
[]
[null,null,null,null,null,null,null,null,"Subtotal D.3",{"$f":"SUM(J24:J27)","v":0},{"$f":"SUM(K24:K27)","v":0}]
["D4. Quotes d'inscripció, lloguer de sistemes de software i hardware i manteniment"]
[]
[]
[]
[]
[null,null,null,null,null,null,null,null,"Subtotal D.4",{"$f":"SUM(J30:J33)","v":0},{"$f":"SUM(K30:K33)","v":0}]
["D5. Despeses de matriculació en accions formatives externes amb una durada mínima de 150 hores i/o un cost mínim de 600€ per a cada participant"]
[]
[]
[]
[]
[null,null,null,null,null,null,null,null,"Subtotal D.5",{"$f":"SUM(J36:J39)","v":0},{"$f":"SUM(K36:K39)","v":0}]
["TOTAL DESPESES DIRECTES",null,null,null,null,null,null,null,null,{"$f":"+J16+J22+J28+J34+J40","v":0},{"$f":"+K16+K22+K28+K34+K40","v":0}]
["DESPESES INDIRECTES (no es poden assignar directament al projecte sense fer servir algun % d'assignació) (màxim 10% de subvenció)"]
["I.1 Personal propi vinculat indirectament (nòmines i seguretat social) "]
[]
[]
[]
[]
[null,null,null,null,null,null,null,null,"Subtotal I1",{"$f":"SUM(J44:J47)","v":0},{"$f":"SUM(K44:K47)","v":0}]
["I.2  Assegurances"]
[]
[]
[]
[]
[null,null,null,null,null,null,null,null,"Subtotal I2",{"$f":"SUM(J50:J53)","v":0},{"$f":"SUM(K50:K53)","v":0}]
["I.3  Amortització"]
[]
[]
[]
[]
[null,null,null,null,null,null,null,null,"Subtotal I3",{"$f":"SUM(J56:J59)","v":0},{"$f":"SUM(K56:K59)","v":0}]
["I.4  Lloguer de béns immobles"]
[]
[]
[]
[]
[null,null,null,null,null,null,null,null,"Subtotal I4",{"$f":"SUM(J62:J65)","v":0},{"$f":"SUM(K62:K65)","v":0}]
["I.5  Adquisició de materials i béns consumibles parcialment imputables al projecte"]
[]
[]
[]
[]
[null,null,null,null,null,null,null,null,"Subtotal I5",{"$f":"SUM(J68:J71)","v":0},{"$f":"SUM(K68:K71)","v":0}]
["I.6  Manteniment d’edificis i/o instal·lacions"]
[]
[]
[]
[]
[null,null,null,null,null,null,null,null,"Subtotal I6",{"$f":"SUM(J74:J77)","v":0},{"$f":"SUM(K74:K77)","v":0}]
["I.7  Comunicacions (telèfon, correus, connexió a internet)"]
[]
[]
[]
[]
[null,null,null,null,null,null,null,null,"Subtotal I7",{"$f":"SUM(J80:J83)","v":0},{"$f":"SUM(K80:K83)","v":0}]
["I.8  Despeses financeres"]
[]
[]
[]
[]
[null,null,null,null,null,null,null,null,"Subtotal I8",{"$f":"SUM(J86:J89)","v":0},{"$f":"SUM(K86:K89)","v":0}]
["I.9  Subministraments "]
[]
[]
[]
[]
[null,null,null,null,null,null,null,null,"Subtotal I9",{"$f":"SUM(J92:J95)","v":0},{"$f":"SUM(K92:K95)","v":0}]
["I.10  Treball realitzat per altres empreses, parcialment imputables al projecte (neteja, seguretat...)"]
[]
[]
[]
[]
[null,null,null,null,null,null,null,null,"Subtotal I10",{"$f":"SUM(J98:J101)","v":0},{"$f":"SUM(K98:K101)","v":0}]
["TOTAL DESPESES INDIRECTES",null,null,null,null,null,null,null,null,{"$f":"+J48+J54+J60+J66+J72+J78+J84+J90+J96+J102","v":0},{"$f":"+K48+K54+K60+K66+K72+K78+K84+K90+K96+K102","v":0}]
["TOTAL DESPESES PROJECTE (DIRECTES + INDIRECTES)",null,null,null,null,null,null,null,"TOTAL",{"$f":"J103+J41","v":0},{"$f":"K103+K41","v":0}]
[]
["Notes:"]
["(*) S'han de relacionar totes les despeses del projecte/activitat/servei subvencionat. En el cas que el nombre de files de cada concepte sigui insuficient podeu inserir línies dins del mateix concepte seleccionant una cel·la verda i fent clic sobre el botó d'inserir línia."]
["(0) El número d'ordre ha de ser correlatiu començant per D.1.1, D1.2, D.1.3, D2.4, etc."]
["(1) Respecte a les despeses de recursos humans, pot ser subvencionable el cost total salarial mensual, que correspon a la suma de la retribució bruta que apareix a la nòmina del treballador/a més la quota de l'empresa a la Seg. Social. Les despeses de personal es justifiquen amb la nòmina del treballador/a acompanyada dels corresponents RLC i RNT (anteriors TC1 i TC2) de la TGSS i el model 111 de l'IRPF."]
["(2) En el cas que el document justificatiu de la resta de despeses, no sigui una factura, sinó un altre document probatori equivalent, com un rebut o justificant (com per dietes o transport públic), indiqueu-lo en la columna \"observacions\""]
["(3) En el cas que un justificant inclogui conceptes que no tenen relació amb el projecte/activitat/servei per al qual s'ha atorgat la subvenció, aquí només s'ha d'indicar la part que realment s'ha dedicat al projecte."]
["(4) En aquesta columna s'ha d'indicar l'import total o parcial de la factura  que s'imputa a la subvenció rebuda de l'Ajuntament de Barcelona. El total imputat, en aquesta columna, ha de ser igual  a l'import de la subvenció rebuda."]
[]
["Modalitat Ac: Digitalització: Facilitar processos de digitalització per l’enfortiment de les empreses i organitzacions de l’ESS, orientada al desenvolupament dels objectius de l’Estratègia #ESSBCN2030 i del PIESS 2024-2027"]
["1. La quantia de la subvenció atorgada no superarà el 80% de la despesa total del projecte a subvencionar. "]
["2. L'import màxim de subvenció per a la modalitat Ac de l’àmbit temàtic de Creació i consolidació (A) és 10.000€. "]
["3.En el cas que la sol·licitud presentada sobrepassi l’import màxim, es considerarà com a import sol·licitat el màxim de l'establert a la convocatòria."]
["4.Es limita amb un màxim del  25% l’import de la subvenció per a despeses de personal propi que participa de forma directa i degudament al projecte."]
["5.No és possible subvencionar la creació/actualització de pàgines web, ni la dinamització de xarxes socials, en cap cas."]
["6.En cap cas es consideraran despeses subvencionables:\n> Els impostos indirectes quan siguin susceptibles de recuperació o compensació.\n> Les despeses d'inversió, incloses les adquisicions de béns mobles.\n> Les despeses realitzades amb data anterior a l'inici del projecte i data posterior a la finalització del projecte.\n> Altres despeses que s'indiquin a la convocatòria."]
["7.Són imputables en aquesta modalitat les despeses indirectes, detallades en l’apartat 13.3. de les bases reguladores; amb un màxim del 10% de l'import de la subvenció."]
["8. No es poden imputar en cap cas despeses d’inversió, corresponents a partides de l'immobilitzat, amb els diners de la subvenció atorgada en aquesta convocatòria específica. Sí es poden imputar a la part de contribució, sempre que siguin despeses dins el període executiu del projecte subvencionat i acreditables tal i com es descriu a la convocatòria."]
["9. La retribució de les persones contractades en el marc del projecte subvencionat no pot ser inferior al Salari Mínim Interprofessional (SMI), ni a l'estipulada al corresponent conveni o marc normatiu de referència (punt 7 de les bases 2023: requisits dels projectes). "]
["10. Els materials produïts de difusió, estudis, informes o materials didàctics utilitzats, etc. en el cas de tractar-se de despesa elegible de la subvenció, hauran de tenir llicència Creative Commons -Compartir Igual- (share a like)  i no podrà tenir la condició –Sense Obres Derivades- (no derivate Works)."]
["11. Els projectes subvencionats han de formentar activitats d'interès públic o social, les quals han de ser gratuïtes per a les persones participants o en cap cas el preu ha de suposar un obstacle per a la seva participació, buscant altres formes d'accés per a persones amb dificultats econòmiques. En el cas que hi hagi algun tipus de lucre, haurà de revertir en les pròpies activitats subvencionades."]
["12. L'Ajuntament de Barcelona i les seves entitats municipals en cap cas subvencionaran el mateix projecte, executat durant el mateix període, per cap altre procediment de concessió que no sigui el regulat per les bases reguladores."]
["13. El/la beneficiari/ària no podrà alterar en cap cas el destí de les subvencions concedides."]

{"sheet":"Relació d'ingressos ","index":1,"n_rows":71,"n_cols":10,"rows_kept":71,"cut":false,"hidden":false,"merged":[[17,6,17,9],[16,6,16,9],[34,6,34,9],[26,0,26,3],[50,6,50,9],[49,6,49,9],[20,0,20,3],[45,0,45,9],[47,6,47,9],[46,6,46,9],[26,6,26,9],[25,6,25,9],[24,6,24,9],[48,6,48,9],[44,6,44,9],[41,6,41,9],[58,6,58,9],[56,0,56,3],[50,0,50,3],[53,6,53,9],[52,6,52,9],[51,0,51,9],[57,0,57,9],[56,6,56,9],[43,6,43,9],[42,6,42,9],[40,6,40,9],[32,6,32,9],[31,6,31,9],[19,6,19,9],[18,6,18,9],[22,6,22,9],[36,6,36,9],[35,6,35,9],[23,6,23,9],[7,2,7,3],[7,1,8,1],[14,0,14,3],[44,0,44,3],[27,0,27,9],[33,0,33,9],[39,0,39,9],[38,0,38,3],[32,0,32,3],[14,6,14,9],[20,6,20,9],[29,6,29,9],[28,6,28,9],[38,6,38,9],[37,6,37,9],[30,6,30,9],[66,0,66,3],[65,0,65,3],[0,0,0,9],[9,0,9,9],[15,0,15,9],[21,0,21,9],[7,6,8,9],[10,6,10,9],[11,6,11,9],[7,0,8,0],[12,6,12,9],[13,6,13,9],[3,2,3,3],[2,2,2,3],[6,0,6,3],[4,2,4,3],[65,6,65,9],[64,6,64,9],[59,6,59,9],[66,6,66,9],[60,6,60,9],[61,6,61,9],[62,6,62,9],[63,6,63,9]]}
["Detall de tots els ingressos obtinguts i aportacions del propi beneficiari per a l'execució de l'activitat subvencionada"]
[]
[null,"Nom de la persona jurídica beneficiària:        ",{"$f":"IF('Relació de despeses'!C3:D3<>\"\",'Relació de despeses'!C3:D3,\"\")","v":""},null,"Import del cost total del projecte :",null,null,{"$f":"IF(+'Relació de despeses'!J3=\"\",\"\",+'Relació de despeses'!J3)","v":""},"euros"]
[null,"Codi de subvenció",{"$f":"IF('Relació de despeses'!C4:D4<>\"\",'Relació de despeses'!C4:D4,\"\")","v":""},null,"Import de la subvenció atorgada:",null,null,{"$f":"IF(+'Relació de despeses'!J4=\"\",\"\",+'Relació de despeses'!J4)","v":""},"euros"]
[null,"Nom del projecte subvencionat",{"$f":"IF('Relació de despeses'!C5:D5<>\"\",'Relació de despeses'!C5:D5,\"\")","v":""},null,"Període d'execució del projecte subvencionat:",null,null,{"$f":"IF(+'Relació de despeses'!J5=\"\",\"\",+'Relació de despeses'!J5)","v":""},"a",{"$f":"IF(+'Relació de despeses'!M5=\"\",\"\",+'Relació de despeses'!M5)","v":""}]
[]
["Ingressos del projecte/activitat/servei subvencionat"]
["Núm. d'ordre (0)","Concepte de l'ingrés","Emissor/a de l'ingrés",null,"Data de cobrament\n(dd/mm/aaaa)","Import","Observacions"]
[null,null,"NIF","Nom","(1)","euros"]
["A. Subvenció municipal "]
[]
[]
[]
[]
[null,null,null,null,"Subtotal A",{"$f":"SUM(F11:F14)","v":0}]
["B. Subvencions d'altres administracions"]
[]
[]
[]
[]
[null,null,null,null,"Subtotal B",{"$f":"SUM(F17:F20)","v":0}]
["C. Subvencions d'ens privats"]
[]
[]
[]
[]
[null,null,null,null,"Subtotal C",{"$f":"SUM(F23:F26)","v":0}]
["D. Recursos propis de l'organització aplicats al projecte"]
[]
[]
[]
[]
[null,null,null,null,"Subtotal D",{"$f":"SUM(F29:F32)","v":0}]
["E. Taquillatge"]
[]
[]
[]
[]
[null,null,null,null,"Subtotal E",{"$f":"SUM(F35:F38)","v":0}]
["F. Quotes d'inscripció"]
[]
[]
[]
[]
[null,null,null,null,"Subtotal F",{"$f":"SUM(F41:F44)","v":0}]
["G. Venda de Productes"]
[]
[]
[]
[]
[null,null,null,null,"Subtotal G",{"$f":"SUM(F47:F50)","v":0}]
["H. Publicitat i/o Esponsorització"]
[]
[]
[]
[]
[null,null,null,null,"Subtotal H",{"$f":"SUM(F53:F56)","v":0}]
["I. Altres ingressos"]
[]
[]
[]
[]
[]
[]
[]
[null,null,null,null,"Subtotal I",{"$f":"SUM(F59:F65)","v":0}]
["Total INGRESSOS",null,null,null,"TOTAL",{"$f":"+F15+F21+F27+F33+F39+F45+F51+F57+F66","v":0}]
[]
[null,"Nota:"]
[null,"(0) El número d'ordre ha de ser correlatiu començant pel número A1, A2, A3, B4, etc."]
[null,"(1) En cas que l'ingrés estigui pendent cobrament, indicar \"P. Cobrament\" "]

{"sheet":"despeses i ingressos","index":2,"n_rows":43,"n_cols":11,"rows_kept":43,"cut":false,"hidden":false,"merged":[[19,0,20,1],[13,1,14,1],[13,2,14,2],[13,3,14,3],[13,4,14,4],[10,6,11,7],[19,2,20,2],[19,3,20,3],[10,8,11,8],[10,9,11,9],[24,6,24,7],[25,6,25,7],[25,8,25,9],[4,0,4,1],[4,2,4,3],[4,5,4,6],[5,0,5,1],[5,2,5,3],[5,5,5,6],[6,0,6,1],[6,2,6,3],[9,0,9,1],[9,6,9,7],[10,0,11,1],[10,2,11,2],[10,3,11,3]]}
[]
[]
["Estat de les despeses realitzades i dels ingressos obtinguts per a l'execució de l'activitat subvencionada (*)"]
[]
["Nom de la persona jurídica beneficiària:         ",null,{"$f":"IF('Relació de despeses'!C3:D3<>\"\",'Relació de despeses'!C3:D3,\"\")","v":""},null,null,"Import del cost total del projecte:",null,{"$f":"'Relació d''ingressos '!H3","v":""},"euros"]
["Codi de subvenció:",null,{"$f":"IF('Relació de despeses'!C4:D4<>\"\",'Relació de despeses'!C4:D4,\"\")","v":""},null,null,"Import de la subvenció atorgada:",null,{"$f":"'Relació d''ingressos '!H4","v":""},"euros"]
["Nom del projecte subvencionat:",null,{"$f":"IF('Relació de despeses'!C5:D5<>\"\",'Relació de despeses'!C5:D5,\"\")","v":""},null,null,"Període d'execució del projecte subvencionat:",null,null,{"$f":"'Relació d''ingressos '!H5","v":""},"a",{"$f":"'Relació d''ingressos '!J5","v":""}]
[]
["SUBVENCIONS PER A L'ENFORTIMENT DE L'ECONOMIA SOCIAL I SOLIDÀRIA I LA INTERCOOPERACIÓ 2024"]
["DESPESES PREVISTES",null,"import en euros",null,"import en euros",null,"INGRESSOS PREVISTOS",null,"import en euros"]
["Despeses directes \n(aquelles que s'identifiquen directament amb el projecte)",null,"Previsió inicial o reformulada ja aprovada (1)","Despeses realitzades (2)","Diferència\n",null,"Ingressos previstos",null,"Previsió inicial (1)","Ingressos obtinguts (3)"]
[null,null,null,null,"(2-1)"]
["Ac","D1.  Nòmines i seguretat social (règim general o socis/es cooperativistes en règim d’autònoms) del personal propi  vinculat al projecte subvencionable (màxim 25% import subvenció)",null,{"$f":"'Relació de despeses'!J16","v":0},{"$f":"+C13-D13","v":0},null,"A.","Subvenció municipal (import sol·licitat a la instància/atorgat)",null,{"$f":"'Relació d''ingressos '!F15","v":0}]
[null,"D2. Nòmines i seguretat social d’estudiants en pràctiques (amb un límit del 80% del seu sou brut corresponent al període de l’execució de la subvenció) - excepte si la seguretat social està bonificada",null,{"$f":"'Relació de despeses'!J22","v":0},{"$f":"+C14-D14","v":0},null,"B.","Subvencions d'altres administracions",null,{"$f":"'Relació d''ingressos '!F21","v":0}]
[null,null,null,null,null,null,"C.","Subvencions d'ens privats",null,{"$f":"'Relació d''ingressos '!F27","v":0}]
[null,"D3. Treballs realitzats per professionals i empreses externes directament vinculades al projecte, (inclou despeses de l'estudiant en pràctiques: taxes i altres despeses relacionades amb el conveni de pràctiques)",null,{"$f":"'Relació de despeses'!J28","v":0},{"$f":"+C16-D16","v":0},null,"D.","Recursos propis de l'organització aplicats al projecte",null,{"$f":"'Relació d''ingressos '!F33","v":0}]
[null,"D4. Quotes d'inscripció, lloguer de sistemes de software i hardware i manteniment",null,{"$f":"'Relació de despeses'!J34","v":0},{"$f":"+C17-D17","v":0},null,"E.","Taquillatge",null,{"$f":"'Relació d''ingressos '!F39","v":0}]
[null,"D5. Despeses de matriculació en accions formatives externes amb una durada mínima de 150 hores i/o un cost mínim de 600€ per a cada participant",null,{"$f":"'Relació de despeses'!J40","v":0},{"$f":"+C18-D18","v":0},null,"F.","Quotes d'inscripció",null,{"$f":"'Relació d''ingressos '!F45","v":0}]
[null,"Total Despeses Directes   ",{"$f":"SUM(C13:C18)","v":0},{"$f":"SUM(D13:D18)","v":0},{"$f":"SUM(E13:E18)","v":0},null,"G.","Venda de Productes",null,{"$f":"'Relació d''ingressos '!F51","v":0}]
["Despeses indirectes (es podran assignar al projecte fent sevir un percentatge d’assignació) ",null,"Previsió inicial o reformulada ja aprovada (1)","Despeses realitzades (2)","Diferència\n",null,"H","Publicitat i/o Esponsorització",null,{"$f":"'Relació d''ingressos '!F57","v":0}]
[null,null,null,null,"(2-1)",null,"I.","Altres ingressos",null,{"$f":"'Relació d''ingressos '!F66","v":0}]
[null,"I.1 Personal propi vinculat indirectament (nòmines i seguretat social) ",null,{"$f":"'Relació de despeses'!J48","v":0},{"$f":"+C22-D22","v":0},null,null,"Total Ingressos",{"$f":"SUM(I13:I21)","v":0},{"$f":"SUM(J13:J21)","v":0}]
[null,"I.2  Assegurances",null,{"$f":"'Relació de despeses'!J54","v":0},0]
[null,"I.3  Amortització",null,{"$f":"'Relació de despeses'!J60","v":0},0]
[null,"I.4  Lloguer de béns immobles",null,{"$f":"'Relació de despeses'!J66","v":0},0,null,"Ingressos menys despeses ",null,{"$f":"+I22-C33","v":0},{"$f":"+J22-D33","v":0}]
[null,"I.5  Adquisició de materials i béns consumibles parcialment imputables al projecte",null,{"$f":"'Relació de despeses'!J72","v":0},0,null,"Desviació de Despeses (4)",null,"Desviació d'ingressos (4)"]
[null,"I.6  Manteniment d’edificis i/o instal·lacions",null,{"$f":"'Relació de despeses'!J78","v":0},0,null,"Import"," % ","Import","%"]
[null,"I.7  Comunicacions (telèfon, correus, connexió a internet)",null,{"$f":"'Relació de despeses'!J84","v":0},0,null,{"$f":"D33-C33","v":0},{"$f":"D33/C33","v":{"$error":"#DIV/0!"}},{"$f":"J22-I22","v":0},{"$f":"J22/I22","v":{"$error":"#DIV/0!"}}]
[null,"I.8  Despeses financeres",null,{"$f":"'Relació de despeses'!J90","v":0},0,null,null,null,"% subvencionat inicialment o després de reformulació (5)",{"$f":"I13/I22","v":{"$error":"#DIV/0!"}}]
[null,"I.9  Subministraments ",null,{"$f":"'Relació de despeses'!J96","v":0},0,null,null,null,"% subvencionat després de justificació (6)",{"$f":"+J13/J22","v":{"$error":"#DIV/0!"}}]
[null,"I.10  Treball realitzat per altres empreses, parcialment imputables al projecte subvencionable (neteja, seguretat...)",null,{"$f":"'Relació de despeses'!J102","v":0},0]
[null,"Total Despeses Indirectes   (Màx. 10% subv)",{"$f":"SUM(C22:C31)","v":0},{"$f":"SUM(D22:D31)","v":0},{"$f":"SUM(E22:E31)","v":0}]
[null,"Total Despeses ",{"$f":"C19+C32","v":0},{"$f":"D19+D32","v":0},{"$f":"E19+E32","v":0}]
[]
[]
[null,"Notes:"]
[null,"(*) Les columnes ombrejades en color  s'aniran emplenant automàticament a partir de les dades introduïdes en els documents de despeses -detall i ingressos-detall. Per tant, no imprimiu aquest full fins haver emplenat els altres."]
[null,"(1) Previsió inicial o reformulació ja aprovada= S'han d'indicar la previsió inicial de despeses i d'ingressos segons allò que es va indicar al projecte original en el \"pla de viabilitat econòmica del projecte - pressupost general\" . En cas que ja s'hagi aprovat una reformulació, s'han d'indicar les quantitats reformulades. "]
[null,"(2) Despeses reals = Cost real total del projecte subvencionat. Automàticament s'introduiran els subtotals de les despeses relacionades al full Despeses-detall."]
[null,"(3) Ingresos reals = Total d'ingressos obtinguts per a la realització del projecte subvencionat. Automàticament s'introduiran els subtotals dels ingressos relacionats al full Ingressos-detall"]
[null,"(4) Desviació: En el cas de les despeses, la desviació és la diferència entre despeses reals i la previsió inicial de despeses; i en el cas d'ingressos, la diferència entre els ingressos reals i la previsió inicial d'ingressos. "]
[null,"(5) % finançament municipal inicial o després de reformulació = percentatge que suposen les subvencions municipals (A) respecte del  total d'ingressos del projecte subvencionat."]
[null,"(6) % finançament municipal després de justificació = percentatge que suposa la subvenció municipal (A) respecte del  total d'ingressos del projecte subvencionat. En cas d'existir una desviació sempre s'ha de motivar."]